bitfinex/quotes_ETHUSD_20250810
["timestamp","ask_amount","ask_price","bid_price","bid_amount"]
[1754811935556,0.8895,4179.4,4179.3,0.001]
[1754811938676,0.4313,4179.4,4179.3,0.001]
[1754811939048,0.29715,4180.2,4179.3,0.001]
[1754811939238,0.8895,4179.4,4179.3,0.001]
[1754811939584,3.28218794,4179.4,4179.3,0.001]
[1754811940002,0.4582,4179.9,4179.3,0.001]
[1754811940210,0.4582,4179.9,4178.8,4.96212121]
[1754811940211,0.8895,4179.4,4178.8,4.96312121]
[1754811940356,0.4313,4179.3,4178.8,4.96312121]
[1754811940555,0.8895,4179.2,4178.8,4.96312121]
[1754811940759,0.24067434,4180.1,4178.8,4.96312121]
[1754811941101,0.4313,4179.7,4178.8,4.96312121]
[1754811941566,0.4313,4179.7,4179.4,2.39265078]
[1754811941768,0.4313,4179.7,4178.8,4.96312121]
[1754811942090,0.4313,4179.7,4179.2,2.39279178]
[1754811942293,0.4313,4179.7,4178.8,4.96312121]
[1754811942459,0.12,4179.0,4178.8,4.96312121]
[1754811942664,2.08,4180.0,4178.9,0.4691]
[1754811942987,2.079,4180.8,4179.0,0.02392916]
[1754811943155,2.079,4180.8,4179.2,2.39280245]
[1754811943359,2.079,4180.8,4179.3,0.64592745]
[1754811943360,2.797262,4180.8,4179.3,0.64592745]
[1754811943605,0.56727071,4181.2,4179.4,0.622]
[1754811943900,0.718118,4181.5,4179.5,0.6459263]
[1754811944196,0.4313,4181.2,4180.7,2.39192399]
[1754811944361,0.4313,4181.1,4179.8,0.49302458]
[1754811944570,0.4313,4181.1,4179.8,0.02392458]
[1754811944571,2.39188044,4180.9,4179.8,0.02392458]
[1754811944769,0.4313,4180.8,4179.4,0.4691]
[1754811945067,0.4313,4180.8,4180.4,2.39211326]
[1754811945068,0.45889343,4180.8,4180.4,2.39211326]
[1754811945273,8.25958748,4181.4,4180.3,2.39216384]
[1754811945274,0.4313,4180.7,4180.3,2.39216384]
[1754811945572,0.4313,4180.6,4179.6,2.39251733]
[1754811945878,0.02759343,4180.5,4178.2,2.39332314]
[1754811946077,0.4313,4180.6,4178.9,0.49631212]
[1754811946278,0.55,4180.4,4179.0,2.39287011]
[1754811946480,2.3923804,4180.0,4178.8,7.3561475]
[1754811946679,2.078,4180.7,4178.8,7.3561475]
[1754811946680,0.4313,4180.5,4179.4,2.39266575]
[1754811946880,0.4313,4180.5,4179.7,2.39246792]
[1754811947101,2.078,4180.7,4180.2,2.3922205]
[1754811947311,2.078,4180.7,4180.4,2.39206133]
[1754811947502,2.83854629,4181.4,4180.5,0.4544]
[1754811947693,0.447,4181.4,4180.5,2.84644955]
[1754811948005,0.447,4181.4,4179.7,0.4544]
[1754811948006,2.39206341,4180.5,4179.7,0.4544]
[1754811948191,0.447,4180.4,4179.7,2.84689849]
[1754811948391,0.447,4180.4,4179.7,0.97835645]
[1754811948607,0.447,4180.4,4179.7,0.4544]
[1754811948936,0.447,4180.4,4179.1,0.4544]
[1754811949093,2.524,4180.4,4179.1,0.4544]
[1754811949292,2.524,4180.4,4178.8,4.96312121]
[1754811949293,0.447,4180.3,4178.8,7.35609689]
[1754811949518,2.39223003,4180.2,4178.8,7.3561469]
[1754811949725,2.39233881,4180.1,4178.8,4.96312121]
[1754811949922,0.61550432,4180.2,4178.8,4.96312121]
[1754811950137,0.447,4180.0,4178.8,4.96312121]
[1754811950630,2.39240173,4179.9,4179.0,2.3928681]
[1754811950846,0.447,4180.0,4179.1,2.39285959]
[1754811951232,0.447,4180.0,4179.1,0.02392859]
[1754811951396,2.39217281,4180.3,4179.2,0.4544]
[1754811951600,2.524,4180.4,4179.2,0.73913435]
[1754811951930,2.524,4180.4,4178.8,7.35614927]
[1754811951931,4.91612149,4180.4,4179.3,0.4544]
[1754811952133,2.524,4180.4,4179.6,2.39256356]
[1754811952449,2.524,4180.4,4179.3,0.4544]
[1754811952617,2.524,4180.4,4179.5,0.12]
[1754811952618,0.12,4180.1,4179.5,0.12]
[1754811952940,0.12,4180.1,4179.5,2.51257938]
[1754811953152,0.12,4180.1,4180.0,2.39234449]
[1754811953302,2.077,4180.4,4179.8,0.12]
[1754811953303,2.197,4180.4,4179.8,0.12]
[1754811953503,0.2077,4180.3,4179.8,0.12]
[1754811953735,0.2077,4180.3,4179.9,2.84678383]
[1754811954045,0.2077,4180.3,4180.0,0.4544]
[1754811954400,0.12,4180.4,4180.0,0.4544]
[1754811954620,0.567,4180.4,4180.0,0.4544]
[1754811955046,0.567,4180.4,4179.8,0.12]
[1754811955047,2.83920009,4180.3,4179.8,0.12]
[1754811955245,10.83882555,4180.2,4179.4,0.12]
[1754811955452,0.12,4180.0,4179.4,0.12]
[1754811955856,0.12,4180.0,4179.4,2.51267655]
[1754811956246,0.12,4180.0,4179.5,2.84701975]
[1754811956433,0.12,4180.0,4179.5,0.4544]
[1754811956623,0.12,4180.0,4179.6,0.4544]
[1754811956821,0.45872471,4179.9,4179.6,0.4544]
[1754811957123,0.12,4180.0,4179.6,0.4544]
[1754811957328,0.12,4180.0,4179.4,2.51267722]
[1754811957329,0.12,4180.0,4179.7,0.4544]
[1754811957835,2.195,4180.2,4179.8,0.4544]
[1754811958036,2.195,4180.2,4179.9,0.4544]
[1754811958243,2.195,4180.2,4180.0,0.4544]
[1754811958462,0.12,4180.2,4180.1,0.4544]
[1754811959750,2.521,4181.0,4180.2,2.39221991]
[1754811959937,0.12,4180.6,4180.1,0.4544]
[1754811960141,0.12,4180.6,4180.2,0.4544]
[1754811960448,0.12,4180.6,4180.3,0.4544]
[1754811961126,0.12,4180.6,4180.4,0.4544]
[1754811961531,0.12,4180.6,4180.5,0.4544]
[1754811962026,0.12,4180.6,4180.5,2.39205836]
[1754811962245,0.002,4181.2,4180.5,1.05281927]
[1754811962463,0.002,4181.2,4181.1,2.39171509]
[1754811962864,0.002,4181.2,4181.0,0.1192]
[1754811963082,0.002,4181.2,4181.1,2.84611509]
[1754811963384,0.002,4181.2,4181.1,2.87003224]
[1754811963582,0.002,4181.2,4181.1,2.99901509]
[1754811963774,0.002,4181.2,4181.1,2.84611509]
[1754811965762,0.002,4181.2,4181.1,3.55864435]
[1754811965989,0.002,4181.2,4181.1,3.5347272]
[1754811966887,0.002,4181.2,4181.1,5.4518272]
[1754811967187,0.002,4181.2,4181.1,4.91611509]
[1754811967585,0.002,4181.2,4181.1,5.06901509]
[1754811967952,0.002,4181.2,4181.1,4.91511509]
[1754811969568,0.002,4181.2,4181.1,5.06801509]
[1754811969790,0.002,4181.2,4181.1,2.84611509]
[1754811970388,0.002,4181.2,4181.1,4.91411509]
[1754811971410,0.002,4181.2,4181.1,2.84611509]
[1754811972616,0.002,4181.2,4181.1,2.87003224]
[1754811972817,0.71781701,4182.1,4182.0,2.39120038]
[1754811972818,1e-08,4182.1,4182.0,2.39120038]
[1754811972983,1e-08,4182.1,4182.0,4.57740038]
[1754811973185,1e-08,4182.1,4182.0,2.51040038]
[1754811973504,1e-08,4182.1,4182.0,2.96480038]
[1754811973724,1e-08,4182.1,4182.0,2.98871238]
[1754811974009,0.002,4182.5,4182.0,2.98871238]
[1754811974010,0.002,4182.5,4182.4,2.39097169]
[1754811974327,0.002,4182.5,4182.4,4.45697169]
[1754811974531,0.002,4182.6,4182.5,2.39091452]
[1754811974684,0.002,4182.6,4182.5,2.84531452]
[1754811974887,0.002,4182.6,4182.5,4.91131452]
[1754811975282,0.002,4182.6,4182.5,2.84531452]
[1754811975631,0.002,4182.6,4182.5,4.91131452]
[1754811976128,0.002,4182.6,4182.5,2.39091452]
[1754811976335,0.449,4182.6,4182.5,2.39091452]
[1754811976493,0.449,4182.6,4182.4,0.1192]
[1754811976826,0.002,4182.6,4182.5,2.41482366]
[1754811977029,0.002,4182.6,4182.5,5.02951452]
[1754811977202,0.002,4182.6,4182.5,2.51011452]
[1754811977605,0.002,4182.6,4182.5,2.88531452]
[1754811977911,0.002,4182.6,4182.5,3.00451452]
[1754811978242,0.095674,4183.7,4182.5,3.00451452]
[1754811978243,0.095674,4183.7,4183.2,2.39050484]
[1754811978431,0.002,4184.1,4184.0,2.39005736]
[1754811978792,0.002,4184.1,4184.0,2.50925736]
[1754811979535,0.002,4184.1,4184.0,3.02755793]
[1754811979742,0.002,4184.1,4184.0,5.06665736]
[1754811980099,0.002,4184.1,4184.0,4.94745736]
[1754811980335,0.002,4184.1,4184.0,5.06665736]
[1754811980826,0.002,4184.1,4184.0,8.06665736]
[1754811981036,0.002,4184.1,4184.0,8.21955736]
[1754811981223,0.002,4184.9,4184.4,2.38982888]
[1754811981429,0.002,4185.4,4184.9,2.38954335]
[1754811981602,1e-08,4185.2,4185.1,2.50862916]
[1754811982032,1e-08,4185.4,4185.3,2.38931498]
[1754811982231,1e-08,4185.4,4185.3,7.45231498]
[1754811982410,1e-08,4185.4,4185.3,8.09961498]
[1754811982610,1e-08,4185.4,4185.3,6.72373486]
[1754811982810,1e-08,4185.4,4185.3,6.57083486]
[1754811983132,1e-08,4185.4,4185.3,8.63283486]
[1754811983831,1e-08,4185.4,4185.3,5.38931498]
[1754811984047,1e-08,4185.4,4185.3,7.94571498]
[1754811984214,0.002,4186.1,4185.4,3.0]
[1754811984403,0.002,4186.1,4185.6,2.38914373]
[1754811984602,0.002,4186.1,4185.6,7.45014373]
[1754811984825,0.002,4186.1,4185.6,7.94454373]
[1754811985464,0.002,4186.1,4185.8,2.38899529]
[1754811985759,0.002,4186.1,4186.0,5.38891543]
[1754811986257,0.002,4186.5,4186.4,2.38868717]
[1754811986556,0.002,4186.5,4186.4,10.88574604]
[1754811986758,1e-08,4186.5,4186.4,11.41197917]
[1754811986961,1e-08,4186.5,4186.4,15.59248117]
[1754811987257,1e-08,4186.5,4186.4,10.86240617]
[1754811987455,1e-08,4186.5,4186.4,8.80240617]
[1754811987622,1e-08,4186.5,4186.4,10.86240617]
[1754811988055,1e-08,4186.5,4186.4,19.10386312]
[1754811988355,1e-08,4187.0,4186.9,5.93840192]
[1754811988655,1e-08,4187.0,4186.9,22.67238092]
[1754811988858,1e-08,4187.0,4186.9,33.63144992]
[1754811989557,0.002,4188.9,4186.9,33.63144992]
[1754811989558,0.002,4188.9,4187.7,0.55]
[1754811989726,0.002,4188.9,4188.8,2.38731856]
[1754811989925,0.002,4188.9,4188.8,7.44631856]
[1754811990660,0.002,4188.9,4188.8,7.94071856]
[1754811990842,1e-08,4189.4,4189.3,2.38703363]
[1754811991045,1e-08,4189.4,4189.3,5.38703363]
[1754811991245,1e-08,4189.4,4189.3,7.44503363]
[1754811991425,1e-08,4189.4,4189.3,7.93943363]
[1754811991625,0.44090001,4189.4,4187.7,2.38791421]
[1754811991931,0.44090001,4189.4,4187.4,2.38806897]
[1754811991932,2.38719891,4189.1,4187.9,2.38783161]
[1754811992135,2.38703363,4189.3,4187.3,0.4944]
[1754811992136,0.4409,4189.0,4187.3,0.4944]
[1754811992344,0.002,4188.9,4187.4,2.057]
[1754811992531,0.4409,4188.8,4187.5,4.44505096]
[1754811992736,0.4409,4188.8,4188.2,2.38764553]
[1754811992931,0.4409,4188.8,4188.2,4.4446546]
[1754811993155,0.4409,4188.8,4188.3,2.057]
[1754811993524,0.4409,4188.8,4188.3,2.38760207]
[1754811993726,0.4409,4188.7,4188.1,2.057]
[1754811993965,0.4409,4188.7,4186.3,2.38869687]
[1754811994186,2.38778148,4188.0,4187.2,2.38820616]
[1754811994334,2.38778148,4188.0,4187.1,2.38824114]
[1754811994335,0.4409,4187.9,4187.1,2.38824114]
[1754811994534,2.38794471,4187.8,4187.4,0.1192]
[1754811994747,2.38794471,4187.8,4181.1,2.12872046]
[1754811994748,0.58969343,4187.7,4187.1,0.1192]
[1754811995029,0.1192,4187.3,4186.7,0.1192]
[1754811995236,0.4409,4187.2,4186.7,0.1192]
[1754811995533,0.4409,4187.1,4187.0,2.50754487]
[1754811995729,0.1192,4187.8,4187.2,2.38817381]
[1754811995934,0.716884,4188.1,4187.0,2.50754487]
[1754811995935,0.4409,4187.7,4187.0,2.50754487]
[1754811996129,0.4409,4187.7,4187.5,0.1192]
[1754811996328,0.4409,4187.7,4186.6,2.056]
[1754811996329,0.4409,4187.7,4187.2,2.50742735]
[1754811996873,0.4409,4187.7,4187.2,0.1192]
[1754811997054,0.1192,4187.8,4187.3,0.02388173]
[1754811997264,2.93689688,4189.6,4187.5,2.3880597]
[1754811997265,0.4409,4187.6,4187.5,2.3880597]
[1754811997631,0.4409,4188.1,4188.0,2.3877177]
[1754811998030,0.4409,4188.1,4188.0,2.5069177]
[1754811998528,0.4409,4188.5,4188.0,0.1192]
[1754811998762,0.4409,4188.5,4188.4,2.50674655]
[1754811998963,0.4409,4189.0,4188.8,2.38727475]
[1754811999138,0.1192,4189.3,4188.7,2.506567]
[1754811999344,0.4409,4188.9,4188.7,0.1192]
[1754811999568,0.47049343,4188.8,4186.9,2.38834882]
[1754811999801,0.47049343,4188.8,4187.8,0.1192]
[1754811999802,0.1192,4188.4,4187.8,0.1192]
[1754812000005,0.4409,4188.3,4187.2,2.055]
[1754812000171,0.4409,4188.3,4188.2,2.38766057]
[1754812000372,0.4409,4188.8,4188.2,0.1192]
[1754812000891,2.94741927,4188.8,4188.2,0.1192]
[1754812001200,0.1192,4188.5,4187.9,0.1192]
[1754812001389,0.4409,4188.4,4188.0,2.3877209]
[1754812001577,0.4409,4188.4,4187.9,0.1192]
[1754812001578,0.4409,4188.3,4187.9,0.1192]
[1754812001777,0.002,4188.2,4186.7,2.054]
[1754812002022,0.1192,4188.0,4187.4,0.1192]
[1754812002174,2.50697926,4188.0,4187.4,0.1192]
[1754812002380,0.4409,4187.9,4187.4,0.1192]
[1754812002600,0.5601,4188.4,4187.8,0.1192]
[1754812002786,0.4409,4188.4,4187.8,0.1192]
[1754812002986,0.4409,4188.4,4188.3,2.50680356]
[1754812003189,0.002,4189.5,4188.7,2.38735451]
[1754812003409,0.4409,4188.9,4188.6,2.38743255]
[1754812003613,0.4409,4188.8,4188.3,0.1192]
[1754812003821,0.4409,4188.7,4188.3,2.38756559]
[1754812004117,0.1192,4189.3,4188.7,0.1192]
[1754812004416,0.44430638,4189.2,4188.7,0.1192]
[1754812004725,0.4409,4189.1,4188.7,0.1192]
[1754812005017,0.4409,4189.0,4188.7,2.50656419]
[1754812005216,0.4409,4188.9,4188.7,0.1192]
[1754812005418,0.1192,4189.3,4188.7,0.1192]
[1754812005617,0.4409,4189.2,4189.1,2.38714759]
[1754812005919,2.05600001,4189.4,4189.3,2.38703363]
[1754812005920,1e-08,4189.4,4189.3,2.38703363]
[1754812006113,1e-08,4189.4,4189.3,2.50623363]
[1754812007828,0.002,4189.7,4189.3,5.40681954]
[1754812008011,0.002,4189.7,4189.6,2.3868627]
[1754812008785,0.002,4189.7,4189.6,5.8487627]
[1754812009518,1e-08,4189.7,4189.6,5.8487627]
[1754812009739,0.04,4189.9,4189.6,5.8487627]
[1754812009740,1e-08,4189.9,4189.8,2.38674877]
[1754812010237,1e-08,4189.9,4189.8,2.84864877]
[1754812010733,1e-08,4189.9,4189.8,4.89964877]
[1754812011533,0.002,4190.7,4190.2,2.38652092]
[1754812011712,0.530904,4191.6,4190.4,5.3863723]
[1754812011923,0.4354,4191.6,4190.8,2.38617924]
[1754812012324,0.4354,4191.6,4190.8,2.84807924]
[1754812012729,0.4354,4191.6,4190.8,4.43617924]
[1754812013608,0.4354,4191.6,4190.8,4.89807924]
[1754812013808,0.4754,4190.9,4190.8,2.38617924]
[1754812014304,0.04,4190.9,4190.8,2.38617924]
[1754812014942,0.4754,4190.9,4190.8,2.38617924]
[1754812015357,0.04,4190.9,4190.8,4.43517924]
[1754812015657,0.04,4190.9,4190.8,4.89707924]
[1754812016305,0.04,4190.9,4190.8,7.89707924]
[1754812017010,0.04,4190.9,4190.8,7.89607924]
[1754812017316,0.04,4190.9,4190.8,7.43417924]
[1754812017518,0.04,4190.9,4190.8,5.38617924]
[1754812017723,0.04,4190.9,4190.8,7.55337924]
[1754812018445,0.04,4190.9,4190.8,5.50537924]
[1754812018661,0.04,4190.9,4190.8,7.55337924]
[1754812019361,0.04,4190.9,4190.8,8.01527924]
[1754812020543,0.04,4190.9,4190.8,5.96727924]
[1754812020742,0.4754,4190.9,4190.8,5.50537924]
[1754812021054,0.4754,4190.9,4190.8,4.55237924]
[1754812021560,0.04,4190.9,4190.8,4.55237924]
[1754812022056,0.04,4190.9,4190.8,5.01427924]
[1754812022427,0.04,4190.9,4190.8,5.50537924]
[1754812022626,0.04,4190.9,4190.8,7.55137924]
[1754812022627,0.4754,4190.9,4190.8,7.55137924]
[1754812022820,0.04,4190.9,4190.8,7.55137924]
[1754812023024,0.04,4190.9,4190.8,8.01327924]
[1754812025445,1e-08,4190.9,4190.8,12.65401124]
[1754812025650,1e-08,4190.9,4190.8,10.80603824]
[1754812025862,1e-08,4190.9,4190.8,11.40738624]
[1754812026317,1e-08,4190.9,4190.8,8.44407924]
[1754812026457,1e-08,4190.9,4190.8,11.41719624]
[1754812026859,1e-08,4190.9,4190.8,5.84807924]
[1754812027123,1e-08,4190.9,4190.8,7.89307924]
[1754812028259,1e-08,4190.9,4190.8,5.84807924]
[1754812028494,0.00200001,4190.9,4190.8,7.89207924]
[1754812030195,0.00200001,4190.9,4190.8,7.43017924]
[1754812031202,0.43740001,4190.9,4190.8,5.043]
[1754812031399,0.43740001,4190.9,4190.8,7.42917924]
[1754812031956,0.43740001,4190.9,4190.8,5.043]
[1754812032156,0.43740001,4190.9,4190.8,7.42917924]
[1754812033153,0.43740001,4190.9,4190.8,7.42817924]
[1754812033154,0.00200001,4190.9,4190.8,7.42817924]
[1754812033406,0.00200001,4190.9,4190.8,7.89007924]
[1754812033706,0.43740001,4190.9,4190.8,2.38617924]
[1754812033863,0.43740001,4190.9,4190.8,4.42817924]
[1754812034260,0.43740001,4190.9,4190.5,2.042]
[1754812034487,0.43740001,4190.9,4190.8,2.38617924]
[1754812035565,0.43740001,4190.9,4190.8,2.50537924]
[1754812037016,0.43740001,4190.9,4190.8,0.1192]
[1754812037661,0.43740001,4190.9,4190.8,2.50537924]
[1754812038800,0.43740001,4190.9,4190.8,0.1192]
[1754812039179,2.38644246,4190.4,4189.8,0.001]
[1754812039361,2.38624644,4190.7,4189.8,0.001]
[1754812039559,0.4736,4190.3,4190.0,2.38662758]
[1754812039812,0.4736,4190.2,4189.9,2.38668468]
[1754812040026,0.4736,4190.1,4189.9,0.1192]
[1754812040204,0.4736,4190.1,4189.8,0.001]
[1754812040392,0.4736,4190.0,4189.8,0.001]
[1754812040577,0.4736,4190.1,4190.0,2.38663484]
[1754812040977,0.4736,4190.1,4190.0,2.98565908]
[1754812041206,0.1192,4190.8,4190.0,2.98565908]
[1754812041411,0.1192,4190.8,4189.8,0.001]
[1754812041412,0.4736,4190.7,4189.8,0.001]
[1754812041611,2.38691968,4189.5,4189.4,0.001]
[1754812042407,2.86251968,4189.5,4189.4,0.001]
[1754812042895,2.86051968,4189.5,4189.4,0.001]
[1754812043409,0.4736,4189.5,4189.4,0.001]
[1754812043809,2.38633382,4190.6,4189.4,0.001]
[1754812044000,0.4736,4190.0,4189.6,2.38684208]
[1754812044204,0.4736,4189.9,4189.4,2.38792102]
[1754812044395,0.4736,4189.8,4189.4,2.38792102]
[1754812044786,0.4736,4189.8,4189.4,0.4677]
[1754812045010,0.716469,4190.6,4189.4,0.001]
[1754812045236,2.38655623,4190.2,4189.4,4.42696848]
[1754812045536,2.86015623,4190.2,4189.4,4.42696848]
[1754812045738,2.38664225,4190.0,4189.4,0.001]
[1754812046039,0.4736,4190.1,4189.5,4.4258782]
[1754812046235,0.716469,4190.6,4189.6,2.3868627]
[1754812046236,2.38642165,4190.4,4189.6,2.3868627]
[1754812046549,0.4736,4190.6,4190.1,2.3865504]
[1754812046844,0.4736,4190.5,4189.7,0.4667]
[1754812047048,0.4736,4190.5,4190.2,2.38646742]
[1754812047348,0.00200001,4190.9,4190.3,0.49056463]
[1754812047645,0.00200001,4190.9,4190.5,2.3863012]
[1754812047800,0.00200001,4190.9,4190.4,3.0]
[1754812047998,0.00200001,4190.9,4190.8,2.38617924]
[1754812048198,0.00200001,4190.9,4190.8,4.42417924]
[1754812048432,0.00200001,4190.9,4190.8,5.60219706]
[1754812048635,0.00200001,4190.9,4190.8,5.57833527]
[1754812049542,0.00200001,4190.9,4190.8,8.57833527]
[1754812050944,0.00200001,4190.9,4190.8,8.57733527]
[1754812051739,0.00200001,4190.9,4190.8,8.69653527]
[1754812052037,0.00200001,4190.9,4190.8,6.65953527]
[1754812052226,0.00200001,4190.9,4190.8,8.69653527]
[1754812054740,0.002,4191.4,4191.3,2.38589459]
[1754812054936,0.002,4191.4,4191.3,7.77874133]
[1754812055216,0.002,4191.4,4191.3,8.24544133]
[1754812057620,0.002,4191.4,4191.3,6.21044133]
[1754812057813,0.04,4191.9,4191.7,2.38566691]
[1754812058147,0.04,4191.9,4191.7,7.41966691]
[1754812058551,0.04,4191.9,4191.7,5.50486691]
[1754812058750,0.4756,4191.8,4191.7,7.53886691]
[1754812059118,0.002,4191.8,4191.7,7.53786691]
[1754812059437,0.002,4191.8,4191.7,8.69202294]
[1754812059620,0.002,4191.8,4191.7,6.65902294]
[1754812059823,0.002,4191.8,4191.7,8.69202294]
[1754812060333,0.002,4191.8,4191.7,6.65902294]
[1754812060533,0.002,4191.8,4191.7,8.69202294]
[1754812060725,0.4756,4191.8,4191.7,6.19232294]
[1754812060924,0.4756,4191.8,4191.7,7.53786691]
[1754812061346,0.002,4191.8,4191.7,8.00456691]
[1754812061744,0.002,4191.8,4191.7,5.50486691]
[1754812061949,0.4756,4191.8,4191.7,7.53686691]
[1754812062158,0.4756,4191.8,4191.7,5.50486691]
[1754812062531,0.4756,4191.8,4191.7,7.53686691]
[1754812062929,0.4756,4191.8,4191.7,4.53686691]
[1754812063233,0.4756,4191.8,4191.7,4.28686698]
[1754812063968,0.002,4191.8,4191.7,4.28686698]
[1754812065258,0.4756,4191.8,4191.7,4.28686698]
[1754812066462,0.4756,4191.8,4191.7,4.28586698]
[1754812069484,0.4756,4191.8,4191.7,4.28386698]
[1754812070179,0.4756,4191.8,4191.7,0.1192]
[1754812070366,0.4776,4191.8,4191.3,0.1192]
[1754812070571,0.4756,4191.8,4191.3,0.1192]
[1754812070770,0.02759343,4191.7,4190.8,3.0]
[1754812071077,0.02759343,4191.7,4190.4,0.001]
[1754812071078,0.1192,4191.3,4191.1,2.38595506]
[1754812071581,0.002,4191.8,4191.3,2.38583905]
[1754812071582,0.1192,4191.6,4191.3,2.38583905]
[1754812071746,0.1192,4191.6,4191.5,2.38578074]
[1754812072079,0.1212,4191.8,4191.2,2.50509614]
[1754812072282,2.38582322,4191.5,4190.7,2.3861912]
[1754812072580,0.1192,4191.3,4190.7,4.5333912]
[1754812072880,0.4624,4191.2,4190.7,2.5053912]
[1754812073385,0.4624,4191.2,4190.7,0.1192]
[1754812073551,0.4624,4191.2,4190.7,2.50538789]
[1754812073750,0.4624,4191.2,4190.7,0.1192]
[1754812073950,0.1192,4190.8,4190.4,0.001]
[1754812074182,0.02759343,4190.7,4190.4,0.001]
[1754812074386,0.4624,4190.7,4190.4,0.001]
[1754812074585,0.4624,4190.6,4190.5,2.38635007]
[1754812074752,0.4624,4190.6,4190.4,0.001]
[1754812074974,0.4624,4190.5,4190.4,0.001]
[1754812075178,0.4624,4190.5,4190.4,2.38739938]
[1754812075378,0.4624,4190.5,4190.4,0.001]
[1754812076404,0.4624,4190.5,4190.4,2.38740702]
[1754812078178,0.4624,4190.8,4190.5,2.38631514]
[1754812078382,0.1192,4191.0,4190.7,2.38623618]
[1754812078730,0.4624,4191.0,4190.9,2.38612231]
[1754812079417,0.4624,4191.4,4190.6,3.0]
[1754812079619,0.4624,4191.4,4191.2,2.38590341]
[1754812079819,0.002,4191.8,4191.3,2.38589453]
[1754812080116,0.002,4191.8,4191.2,2.38594165]
[1754812080117,0.4624,4191.4,4191.2,2.38594165]
[1754812080319,0.002,4191.8,4191.3,2.38589086]
[1754812080515,0.4624,4191.7,4191.3,2.38589086]
[1754812080817,0.4624,4191.6,4191.1,2.38595912]
[1754812081017,0.4624,4191.5,4191.2,2.38593483]
[1754812081324,0.4624,4191.5,4191.4,2.38583766]
[1754812081619,0.002,4191.8,4191.2,2.38590369]
[1754812081817,0.4624,4191.4,4191.2,2.38590369]
[1754812081984,0.4624,4191.3,4191.0,2.38602122]
[1754812082186,0.4624,4191.3,4190.1,0.4565]
[1754812082187,0.4624,4191.2,4190.1,0.4565]
[1754812082387,0.7472319,4191.2,4190.1,0.4565]
[1754812082600,0.4624,4191.2,4189.9,0.001]
[1754812082800,2.38623091,4190.8,4190.0,2.3866199]
[1754812083012,0.02759343,4190.7,4190.1,2.38656921]
[1754812083213,0.4624,4190.7,4190.1,2.38655972]
[1754812083410,0.4624,4190.7,4189.9,3.001]
[1754812083638,2.3862966,4190.6,4189.9,0.001]
[1754812083840,2.65257316,4190.5,4189.9,0.001]
[1754812084041,3.63937973,4190.5,4189.9,0.001]
[1754812084709,5.66337973,4190.5,4189.9,0.001]
[1754812084918,5.11137973,4190.5,4189.9,0.001]
[1754812085499,2.26262966,4190.5,4189.9,0.001]
[1754812085737,2.024,4190.5,4190.1,2.38656017]
[1754812086032,5.42475007,4190.5,4189.9,0.001]
[1754812086200,2.93646397,4190.3,4189.9,0.001]
[1754812086597,3.39886397,4190.3,4189.9,0.001]
[1754812086803,0.4624,4190.3,4189.9,0.001]
[1754812087003,0.95244113,4190.3,4189.9,0.001]
[1754812087234,0.02759343,4190.3,4189.9,0.001]
[1754812087433,0.4624,4190.3,4189.9,0.001]
[1754812087634,0.48999343,4190.3,4189.9,0.001]
[1754812087838,0.4624,4190.3,4189.9,2.38768835]
[1754812088041,2.024,4190.5,4189.9,2.38768835]
[1754812088042,2.024,4190.5,4190.2,0.4575]
[1754812088223,2.024,4190.5,4190.3,0.4565]
[1754812088628,2.1432,4190.5,4190.3,0.4565]
[1754812088823,0.1192,4190.7,4190.6,2.38623718]
[1754812089135,0.1192,4191.1,4190.8,2.38614248]
[1754812089336,0.1192,4191.1,4190.6,0.4565]
[1754812089337,0.1192,4191.1,4190.9,2.38610928]
[1754812089537,0.1192,4191.1,4190.9,2.84260928]
[1754812090308,0.1192,4191.1,4191.0,2.38606537]
[1754812090729,0.1192,4191.1,4190.9,0.4565]
[1754812091139,0.1192,4191.1,4190.9,2.84261197]
[1754812091649,0.1192,4191.1,4191.0,2.38606537]
[1754812091807,2.022,4191.4,4191.1,2.38600844]
[1754812092008,2.022,4191.4,4191.3,2.38589459]
[1754812092253,2.022,4191.4,4191.3,2.84239459]
[1754812093508,0.1192,4191.6,4191.5,2.38578074]
[1754812093935,0.002,4191.8,4191.5,0.4565]
[1754812094149,0.002,4191.8,4191.7,2.38566691]
[1754812094644,0.002,4191.8,4191.7,2.84216691]
[1754812095928,0.002,4191.8,4191.7,0.4565]
[1754812096411,0.002,4191.8,4191.5,2.50493427]
[1754812096613,0.002,4191.8,4191.6,0.4565]
[1754812096922,0.002,4191.8,4191.5,0.1192]
[1754812096923,0.4644,4191.8,4191.5,0.1192]
[1754812098046,0.4506,4191.7,4191.2,2.38594049]
[1754812098246,0.5698,4191.6,4191.2,2.38594049]
[1754812098449,0.4506,4191.5,4191.2,2.38594049]
[1754812098749,0.4506,4191.5,4191.0,0.1192]
[1754812098945,0.4506,4191.5,4191.3,2.38587287]
[1754812099165,0.4506,4191.5,4191.3,2.38585281]
[1754812099469,0.1192,4191.6,4191.4,0.4665]
[1754812099673,0.1192,4191.6,4191.1,0.4665]
[1754812099866,0.002,4191.8,4191.2,0.4665]
[1754812100173,0.4506,4191.7,4191.4,0.1192]
[1754812100488,0.4506,4191.6,4191.4,0.1192]
[1754812100633,0.4506,4191.5,4190.8,0.4665]
[1754812100838,0.5698,4191.5,4191.0,2.38606537]
[1754812101033,0.5698,4191.5,4190.9,3.1192]
[1754812101034,0.5698,4191.5,4191.4,2.38583766]
[1754812101301,0.5698,4191.5,4191.3,2.38588491]
[1754812101642,0.5698,4191.5,4191.1,2.85245802]
[1754812101843,0.5698,4191.5,4191.1,0.4665]
[1754812102055,0.5698,4191.5,4191.3,2.38584527]